[Event "Titled Tuesday Blitz February 21 Early 2023"]
[White "Boruchovsky, Avital"]
[Black "Kubicka, Anna"]
[WhiteFideId "2800055"]
[BlackFideId "1152254"]
[WhiteElo "2539"]
[BlackElo "2240"]
[Result "1-0"]
[Round "02"]
[TimeControl "180+2"]
[Date "2023.02.21"]
[WhiteClock "0:00:46"]
[BlackClock "0:00:12"]

1. Nf3 {[%clk 0:03:00]}  Nf6 {[%clk 0:02:59]} 2. g3 {[%clk 0:03:01]}  g6 {[%clk 0:03:00]} 3. Bg2 {[%clk 0:03:02]}  Bg7 {[%clk 0:03:01]} 4. c4 {[%clk 0:03:02]}  O-O {[%clk 0:03:01]} 5. Nc3 {[%clk 0:03:01]}  d6 {[%clk 0:03:01]} 6. O-O {[%clk 0:03:00]}  e5 {[%clk 0:03:01]} 7. d4 {[%clk 0:03:00]}  Nc6 {[%clk 0:02:59]} 8. e3 {[%clk 0:03:01]}  Re8 {[%clk 0:02:55]} 9. h3 {[%clk 0:02:59]}  a5 {[%clk 0:02:52]} 10. b3 {[%clk 0:02:58]}  exd4 {[%clk 0:02:48]} 11. Nxd4 {[%clk 0:02:59]}  Nxd4 {[%clk 0:02:46]} 12. exd4 {[%clk 0:02:56]}  c6 {[%clk 0:02:43]} 13. Be3 {[%clk 0:02:52]}  d5 {[%clk 0:02:42]} 14. cxd5 {[%clk 0:02:50]}  Nxd5 {[%clk 0:02:43]} 15. Nxd5 {[%clk 0:02:50]}  cxd5 {[%clk 0:02:43]} 16. Qd2 {[%clk 0:02:44]}  Bf5 {[%clk 0:02:37]} 17. Rac1 {[%clk 0:02:39]}  a4 {[%clk 0:02:38]} 18. g4 {[%clk 0:02:21]}  Be6 {[%clk 0:02:24]} 19. Qb4 {[%clk 0:02:13]}  Qa5 {[%clk 0:01:58]} 20. Qxa5 {[%clk 0:02:08]}  Rxa5 {[%clk 0:01:59]} 21. b4 {[%clk 0:02:07]}  Raa8 {[%clk 0:01:59]} 22. Rc7 {[%clk 0:02:03]}  b5 {[%clk 0:01:54]} 23. a3 {[%clk 0:02:00]}  Rec8 {[%clk 0:01:52]} 24. Rfc1 {[%clk 0:02:00]}  Rxc7 {[%clk 0:01:52]} 25. Rxc7 {[%clk 0:02:01]}  Rb8 {[%clk 0:01:42]} 26. Kf1 {[%clk 0:01:58]}  Bf6 {[%clk 0:01:34]} 27. Ke2 {[%clk 0:01:57]}  Bd8 {[%clk 0:01:35]} 28. Rc6 {[%clk 0:01:49]}  Rb6 {[%clk 0:01:21]} 29. Rc1 {[%clk 0:01:34]}  f5 {[%clk 0:01:11]} 30. g5 {[%clk 0:01:32]}  Kf7 {[%clk 0:01:02]} 31. Bf4 {[%clk 0:01:31]}  Ke8 {[%clk 0:01:01]} 32. Bc7 {[%clk 0:01:16]}  Rb7 {[%clk 0:00:49]} 33. Bxd8 {[%clk 0:01:15]}  Kxd8 {[%clk 0:00:50]} 34. Rc5 {[%clk 0:01:12]}  Kd7 {[%clk 0:00:37]} 35. Bxd5 {[%clk 0:01:11]}  Bxd5 {[%clk 0:00:38]} 36. Rxd5+ {[%clk 0:01:12]}  Kc6 {[%clk 0:00:38]} 37. Re5 {[%clk 0:01:09]}  Rd7 {[%clk 0:00:34]} 38. Kd3 {[%clk 0:01:09]}  Kb6 {[%clk 0:00:30]} 39. d5 {[%clk 0:01:09]}  Kc7 {[%clk 0:00:26]} 40. Kd4 {[%clk 0:01:09]}  Kb6 {[%clk 0:00:23]} 41. Re6+ {[%clk 0:01:09]}  Kb7 {[%clk 0:00:22]} 42. Kc5 {[%clk 0:01:09]}  Rc7+ {[%clk 0:00:22]} 43. Kxb5 {[%clk 0:01:09]}  Rc3 {[%clk 0:00:22]} 44. Re7+ {[%clk 0:01:09]}  Kc8 {[%clk 0:00:22]} 45. Rxh7 {[%clk 0:01:06]}  Rxa3 {[%clk 0:00:22]} 46. Kc4 {[%clk 0:00:52]}  Rf3 {[%clk 0:00:17]} 47. Ra7 {[%clk 0:00:49]}  a3 {[%clk 0:00:16]} 48. h4 {[%clk 0:00:46]}  Rxf2 {[%clk 0:00:16]} 49. Rxa3 {[%clk 0:00:45]}  Rf4+ {[%clk 0:00:16]} 50. Kc5 {[%clk 0:00:46]}  Rxh4 {[%clk 0:00:17]} 51. Ra6 {[%clk 0:00:46]}  f4 {[%clk 0:00:12]} 52. Rxg6 {[%clk 0:00:46]}  Rg4 {[%clk 0:00:12]} 53. Kc6 {[%clk 0:00:46]}  Kb8 {[%clk 0:00:12]} 54. b5 {[%clk 0:00:46]}  f3 {[%clk 0:00:13]} 55. Rg8+ {[%clk 0:00:45]}  Ka7 {[%clk 0:00:13]} 56. b6+ {[%clk 0:00:46]}  Ka6 {[%clk 0:00:12]} 57. Ra8# {[%clk 0:00:46]} 1-0


[Site "https://www.chess.com"]

[Event "Titled Tuesday Blitz February 21 Early 2023"]
[White "Padmini, Rout"]
[Black "Zemlyanskii, Ivan"]
[WhiteFideId "5029295"]
[BlackFideId "24249971"]
[WhiteElo "2375"]
[BlackElo "2300"]
[Result "0-1"]
[Round "02"]
[TimeControl "180+2"]
[Date "2023.02.21"]
[WhiteClock "0:00:05"]
[BlackClock "0:00:08"]

1. e4 {[%clk 0:02:57]}  Nc6 {[%clk 0:03:00]} 2. d4 {[%clk 0:02:57]}  d5 {[%clk 0:03:00]} 3. e5 {[%clk 0:02:49]}  Bf5 {[%clk 0:03:00]} 4. Nf3 {[%clk 0:02:46]}  e6 {[%clk 0:03:00]} 5. Be2 {[%clk 0:02:44]}  f6 {[%clk 0:02:58]} 6. O-O {[%clk 0:02:39]}  Nge7 {[%clk 0:02:56]} 7. c4 {[%clk 0:02:32]}  Qd7 {[%clk 0:02:21]} 8. Nc3 {[%clk 0:02:27]}  O-O-O {[%clk 0:02:11]} 9. Be3 {[%clk 0:01:41]}  fxe5 {[%clk 0:02:10]} 10. cxd5 {[%clk 0:01:12]}  exd5 {[%clk 0:02:09]} 11. Bb5 {[%clk 0:01:01]}  e4 {[%clk 0:01:58]} 12. Ne5 {[%clk 0:01:00]}  Qe6 {[%clk 0:01:55]} 13. Bxc6 {[%clk 0:00:50]}  Nxc6 {[%clk 0:01:55]} 14. Nxc6 {[%clk 0:00:39]}  Qxc6 {[%clk 0:01:56]} 15. Rc1 {[%clk 0:00:37]}  Qa6 {[%clk 0:01:47]} 16. a4 {[%clk 0:00:35]}  c6 {[%clk 0:01:15]} 17. Nb5 {[%clk 0:00:35]}  Qb6 {[%clk 0:00:55]} 18. Bf4 {[%clk 0:00:35]}  Rd7 {[%clk 0:00:55]} 19. Qh5 {[%clk 0:00:18]}  g6 {[%clk 0:00:43]} 20. Qg5 {[%clk 0:00:18]}  Be7 {[%clk 0:00:35]} 21. Qh6 {[%clk 0:00:17]}  Kd8 {[%clk 0:00:31]} 22. Qg7 {[%clk 0:00:17]}  Rf8 {[%clk 0:00:27]} 23. Bg5 {[%clk 0:00:14]}  Ke8 {[%clk 0:00:28]} 24. Bxe7 {[%clk 0:00:10]}  Rf7 {[%clk 0:00:21]} 25. Qh8+ {[%clk 0:00:08]}  Kxe7 {[%clk 0:00:19]} 26. Nc3 {[%clk 0:00:07]}  Qd8 {[%clk 0:00:12]} 27. Qe5+ {[%clk 0:00:06]}  Be6 {[%clk 0:00:12]} 28. f3 {[%clk 0:00:07]}  Qc7 {[%clk 0:00:07]} 29. Qg5+ {[%clk 0:00:06]}  Ke8 {[%clk 0:00:08]} 30. fxe4 {[%clk 0:00:07]}  Rxf1+ {[%clk 0:00:05]} 31. Rxf1 {[%clk 0:00:08]}  Rf7 {[%clk 0:00:06]} 32. exd5 {[%clk 0:00:07]}  Rxf1+ {[%clk 0:00:06]} 33. Kxf1 {[%clk 0:00:08]}  Qf7+ {[%clk 0:00:07]} 34. Ke1 {[%clk 0:00:08]}  Bxd5 {[%clk 0:00:06]} 35. Nxd5 {[%clk 0:00:08]}  cxd5 {[%clk 0:00:07]} 36. Qe5+ {[%clk 0:00:08]}  Kd7 {[%clk 0:00:07]} 37. Kd2 {[%clk 0:00:08]}  Qf2+ {[%clk 0:00:07]} 38. Kc3 {[%clk 0:00:08]}  Qxg2 {[%clk 0:00:08]} 39. Qg7+ {[%clk 0:00:08]}  Ke6 {[%clk 0:00:08]} 40. Qg8+ {[%clk 0:00:08]}  Kf5 {[%clk 0:00:08]} 41. Qf8+ {[%clk 0:00:08]}  Kg5 {[%clk 0:00:08]} 42. Qe7+ {[%clk 0:00:08]}  Kg4 {[%clk 0:00:09]} 43. Qxh7 {[%clk 0:00:08]}  Qf3+ {[%clk 0:00:09]} 44. Kb4 {[%clk 0:00:08]}  Qe4 {[%clk 0:00:09]} 45. Qd7+ {[%clk 0:00:07]}  Kf3 {[%clk 0:00:08]} 46. Qf7+ {[%clk 0:00:06]}  Ke2 {[%clk 0:00:09]} 47. Qxb7 {[%clk 0:00:07]}  Qxd4+ {[%clk 0:00:09]} 48. Ka3 {[%clk 0:00:07]}  Qc5+ {[%clk 0:00:07]} 49. b4 {[%clk 0:00:07]}  Qc3+ {[%clk 0:00:07]} 50. Ka2 {[%clk 0:00:07]}  Qc4+ {[%clk 0:00:07]} 51. Ka3 {[%clk 0:00:07]}  Kd2 {[%clk 0:00:08]} 52. Qh7 {[%clk 0:00:06]}  Qc3+ {[%clk 0:00:05]} 53. Ka2 {[%clk 0:00:06]}  Qxb4 {[%clk 0:00:05]} 54. Qxg6 {[%clk 0:00:06]}  Qxa4+ {[%clk 0:00:05]} 55. Kb2 {[%clk 0:00:07]}  Qb4+ {[%clk 0:00:06]} 56. Ka2 {[%clk 0:00:07]}  Qc4+ {[%clk 0:00:07]} 57. Kb2 {[%clk 0:00:07]}  Qb5+ {[%clk 0:00:06]} 58. Ka2 {[%clk 0:00:08]}  Qa4+ {[%clk 0:00:05]} 59. Kb2 {[%clk 0:00:08]}  Qd4+ {[%clk 0:00:05]} 60. Ka3 {[%clk 0:00:07]}  Qe4 {[%clk 0:00:06]} 61. Qg5+ {[%clk 0:00:06]}  Kc3 {[%clk 0:00:07]} 62. Qg3+ {[%clk 0:00:06]}  Kc4 {[%clk 0:00:07]} 63. Qc7+ {[%clk 0:00:06]}  Kd3 {[%clk 0:00:07]} 64. Qxa7 {[%clk 0:00:07]}  d4 {[%clk 0:00:07]} 65. Kb2 {[%clk 0:00:07]}  Qe2+ {[%clk 0:00:07]} 66. Kb3 {[%clk 0:00:08]}  Qc2+ {[%clk 0:00:08]} 67. Kb4 {[%clk 0:00:07]}  Qc3+ {[%clk 0:00:08]} 68. Kb5 {[%clk 0:00:08]}  Kd2 {[%clk 0:00:06]} 69. Qg7 {[%clk 0:00:07]}  d3 {[%clk 0:00:06]} 70. Qg2+ {[%clk 0:00:07]}  Kc1 {[%clk 0:00:06]} 71. h4 {[%clk 0:00:06]}  d2 {[%clk 0:00:07]} 72. Qg5 {[%clk 0:00:07]}  Kb2 {[%clk 0:00:07]} 73. Qg1 {[%clk 0:00:05]}  Qd3+ {[%clk 0:00:07]} 74. Kc6 {[%clk 0:00:05]}  d1=Q {[%clk 0:00:08]} 75. Qxd1 {[%clk 0:00:05]}  Qxd1 {[%clk 0:00:08]} 0-1


[Site "https://www.chess.com"]

[Event "Titled Tuesday Blitz February 21 Early 2023"]
[White "Kukhmazov, Arsen"]
[Black "Petrovic, Aleksa"]
[WhiteFideId "24108260"]
[BlackFideId "967629"]
[WhiteElo "2512"]
[BlackElo "2332"]
[Result "1-0"]
[Round "02"]
[TimeControl "180+2"]
[Date "2023.02.21"]
[WhiteClock "0:00:25"]
[BlackClock "0:00:03"]

1. d4 {[%clk 0:03:00]}  Nf6 {[%clk 0:02:59]} 2. c4 {[%clk 0:03:01]}  e6 {[%clk 0:02:59]} 3. Nf3 {[%clk 0:02:57]}  b6 {[%clk 0:02:59]} 4. a3 {[%clk 0:02:56]}  Ba6 {[%clk 0:02:57]} 5. Qc2 {[%clk 0:02:56]}  Bb7 {[%clk 0:02:56]} 6. Nc3 {[%clk 0:02:56]}  c5 {[%clk 0:02:55]} 7. e4 {[%clk 0:02:56]}  cxd4 {[%clk 0:02:55]} 8. Nxd4 {[%clk 0:02:57]}  Bc5 {[%clk 0:02:55]} 9. Nb3 {[%clk 0:02:57]}  Nc6 {[%clk 0:02:54]} 10. Nxc5 {[%clk 0:02:41]}  bxc5 {[%clk 0:02:54]} 11. Be3 {[%clk 0:02:42]}  Nd4 {[%clk 0:02:48]} 12. Qd3 {[%clk 0:02:42]}  Qb6 {[%clk 0:02:38]} 13. Rb1 {[%clk 0:02:36]}  d5 {[%clk 0:02:01]} 14. cxd5 {[%clk 0:02:17]}  exd5 {[%clk 0:01:56]} 15. e5 {[%clk 0:01:22]}  Ng4 {[%clk 0:01:54]} 16. Bxd4 {[%clk 0:01:21]}  cxd4 {[%clk 0:01:53]} 17. Nb5 {[%clk 0:01:20]}  Nxe5 {[%clk 0:01:34]} 18. Qxd4 {[%clk 0:01:21]}  O-O {[%clk 0:01:22]} 19. Be2 {[%clk 0:01:14]}  Ba6 {[%clk 0:00:35]} 20. Qxb6 {[%clk 0:00:58]}  axb6 {[%clk 0:00:36]} 21. Nc7 {[%clk 0:00:47]}  Bxe2 {[%clk 0:00:35]} 22. Nxa8 {[%clk 0:00:47]}  Bd3 {[%clk 0:00:14]} 23. Rd1 {[%clk 0:00:47]}  Rxa8 {[%clk 0:00:14]} 24. f4 {[%clk 0:00:47]}  Bc2 {[%clk 0:00:14]} 25. fxe5 {[%clk 0:00:45]}  Bxd1 {[%clk 0:00:13]} 26. Kxd1 {[%clk 0:00:46]}  Re8 {[%clk 0:00:13]} 27. Re1 {[%clk 0:00:46]}  f6 {[%clk 0:00:11]} 28. exf6 {[%clk 0:00:45]}  Rxe1+ {[%clk 0:00:11]} 29. Kxe1 {[%clk 0:00:45]}  gxf6 {[%clk 0:00:12]} 30. Kd2 {[%clk 0:00:40]}  Kf7 {[%clk 0:00:12]} 31. Kd3 {[%clk 0:00:36]}  Ke6 {[%clk 0:00:12]} 32. Kd4 {[%clk 0:00:36]}  f5 {[%clk 0:00:10]} 33. a4 {[%clk 0:00:35]}  h5 {[%clk 0:00:09]} 34. b4 {[%clk 0:00:33]}  Kd6 {[%clk 0:00:04]} 35. a5 {[%clk 0:00:33]}  f4 {[%clk 0:00:03]} 36. a6 {[%clk 0:00:30]}  Kc7 {[%clk 0:00:03]} 37. b5 {[%clk 0:00:25]}  h4 {[%clk 0:00:03]} 38. h3 {[%clk 0:00:25]}  Kb8 {[%clk 0:00:03]} 39. Kxd5 {[%clk 0:00:25]} 1-0


[Site "https://www.chess.com"]

[Event "Titled Tuesday Blitz February 21 Early 2023"]
[White "Urbina Perez, Juan Antonio"]
[Black "Tatarinov, Dmitry"]
[WhiteFideId "2217368"]
[BlackFideId "24160067"]
[WhiteElo "2266"]
[BlackElo "2310"]
[Result "1-0"]
[Round "02"]
[TimeControl "180+2"]
[Date "2023.02.21"]
[WhiteClock "0:00:42"]
[BlackClock "0:01:51"]

1. d4 {[%clk 0:03:00]}  Nf6 {[%clk 0:03:00]} 2. c4 {[%clk 0:03:00]}  e6 {[%clk 0:03:00]} 3. Nf3 {[%clk 0:02:59]}  Bb4+ {[%clk 0:03:01]} 4. Bd2 {[%clk 0:02:57]}  Qe7 {[%clk 0:03:01]} 5. e3 {[%clk 0:02:55]}  O-O {[%clk 0:02:57]} 6. Bd3 {[%clk 0:02:54]}  b6 {[%clk 0:02:56]} 7. O-O {[%clk 0:02:54]}  Bxd2 {[%clk 0:02:56]} 8. Nbxd2 {[%clk 0:02:51]}  Bb7 {[%clk 0:02:56]} 9. e4 {[%clk 0:02:50]}  d6 {[%clk 0:02:56]} 10. e5 {[%clk 0:02:50]}  dxe5 {[%clk 0:02:56]} 11. Nxe5 {[%clk 0:02:48]}  Nbd7 {[%clk 0:02:55]} 12. Ndf3 {[%clk 0:02:47]}  c5 {[%clk 0:02:51]} 13. Nxd7 {[%clk 0:02:42]}  Nxd7 {[%clk 0:02:50]} 14. dxc5 {[%clk 0:02:37]}  Nxc5 {[%clk 0:02:51]} 15. Bc2 {[%clk 0:02:38]}  Rfd8 {[%clk 0:02:50]} 16. Qe2 {[%clk 0:02:38]}  Bxf3 {[%clk 0:02:50]} 17. Qxf3 {[%clk 0:02:36]}  a5 {[%clk 0:02:50]} 18. Rad1 {[%clk 0:02:34]}  g6 {[%clk 0:02:50]} 19. h3 {[%clk 0:02:31]}  Rxd1 {[%clk 0:02:47]} 20. Rxd1 {[%clk 0:02:31]}  Rd8 {[%clk 0:02:48]} 21. Qe2 {[%clk 0:02:31]}  Rd6 {[%clk 0:02:46]} 22. Rxd6 {[%clk 0:02:28]}  Qxd6 {[%clk 0:02:45]} 23. Qd1 {[%clk 0:02:29]}  Qe5 {[%clk 0:02:43]} 24. Qd8+ {[%clk 0:02:21]}  Kg7 {[%clk 0:02:41]} 25. Qxb6 {[%clk 0:02:20]}  Qe1+ {[%clk 0:02:41]} 26. Kh2 {[%clk 0:02:19]}  Qxf2 {[%clk 0:02:41]} 27. Bb3 {[%clk 0:02:08]}  Qf4+ {[%clk 0:02:37]} 28. Kg1 {[%clk 0:02:02]}  Qd4+ {[%clk 0:02:29]} 29. Kh2 {[%clk 0:02:01]}  e5 {[%clk 0:02:30]} 30. Qxa5 {[%clk 0:01:53]}  Qf4+ {[%clk 0:02:28]} 31. Kg1 {[%clk 0:01:52]}  Ne4 {[%clk 0:02:25]} 32. Qe1 {[%clk 0:01:45]}  h5 {[%clk 0:02:23]} 33. Bc2 {[%clk 0:01:44]}  Ng3 {[%clk 0:02:18]} 34. c5 {[%clk 0:01:32]}  h4 {[%clk 0:02:14]} 35. c6 {[%clk 0:01:32]}  Qc4 {[%clk 0:02:15]} 36. Bb3 {[%clk 0:01:18]}  Qc5+ {[%clk 0:02:11]} 37. Kh2 {[%clk 0:01:17]}  e4 {[%clk 0:02:11]} 38. Qc3+ {[%clk 0:01:10]}  Qxc3 {[%clk 0:02:11]} 39. bxc3 {[%clk 0:01:10]}  e3 {[%clk 0:02:09]} 40. Bc4 {[%clk 0:01:07]}  Ne4 {[%clk 0:02:09]} 41. c7 {[%clk 0:01:02]}  Nd6 {[%clk 0:02:10]} 42. a4 {[%clk 0:01:02]}  Kf6 {[%clk 0:02:08]} 43. a5 {[%clk 0:01:00]}  Ke7 {[%clk 0:02:09]} 44. a6 {[%clk 0:00:59]}  Nc8 {[%clk 0:02:09]} 45. Kg1 {[%clk 0:00:56]}  f5 {[%clk 0:02:08]} 46. Kf1 {[%clk 0:00:56]}  f4 {[%clk 0:02:08]} 47. Ke2 {[%clk 0:00:56]}  Kd6 {[%clk 0:02:08]} 48. Bd3 {[%clk 0:00:54]}  g5 {[%clk 0:02:08]} 49. Kf3 {[%clk 0:00:52]}  Kxc7 {[%clk 0:02:08]} 50. Kg4 {[%clk 0:00:52]}  Nb6 {[%clk 0:02:04]} 51. Kxg5 {[%clk 0:00:50]}  Nd5 {[%clk 0:02:04]} 52. c4 {[%clk 0:00:44]}  Nc3 {[%clk 0:01:58]} 53. Kxf4 {[%clk 0:00:44]}  e2 {[%clk 0:01:58]} 54. Bxe2 {[%clk 0:00:44]}  Nxe2+ {[%clk 0:01:59]} 55. Kg4 {[%clk 0:00:43]}  Kb6 {[%clk 0:01:57]} 56. Kxh4 {[%clk 0:00:43]}  Kxa6 {[%clk 0:01:58]} 57. Kg5 {[%clk 0:00:43]}  Kb6 {[%clk 0:01:59]} 58. h4 {[%clk 0:00:43]}  Kc6 {[%clk 0:01:52]} 59. h5 {[%clk 0:00:44]}  Kd6 {[%clk 0:01:53]} 60. h6 {[%clk 0:00:42]}  Ke7 {[%clk 0:01:51]} 1-0


[Site "https://www.chess.com"]

[Event "Titled Tuesday Blitz February 21 Early 2023"]
[White "Cruz Lledo, Pablo"]
[Black "Real_OceanStorm"]
[WhiteFideId "2297361"]
[WhiteElo "2373"]
[BlackElo "2781"]
[Result "0-1"]
[Round "02"]
[TimeControl "180+2"]
[Date "2023.02.21"]
[WhiteClock "0:00:06"]
[BlackClock "0:00:06"]

1. d4 {[%clk 0:02:58]}  Nf6 {[%clk 0:02:59]} 2. Nf3 {[%clk 0:02:57]}  d5 {[%clk 0:02:57]} 3. c4 {[%clk 0:02:57]}  c6 {[%clk 0:02:56]} 4. e3 {[%clk 0:02:56]}  g6 {[%clk 0:02:57]} 5. cxd5 {[%clk 0:02:55]}  cxd5 {[%clk 0:02:56]} 6. Ne5 {[%clk 0:02:53]}  Nc6 {[%clk 0:02:56]} 7. Nxc6 {[%clk 0:02:51]}  bxc6 {[%clk 0:02:57]} 8. Nd2 {[%clk 0:02:50]}  Bg7 {[%clk 0:02:58]} 9. Nb3 {[%clk 0:02:50]}  O-O {[%clk 0:02:58]} 10. Bd2 {[%clk 0:02:51]}  Re8 {[%clk 0:02:52]} 11. Rc1 {[%clk 0:02:49]}  Bd7 {[%clk 0:02:52]} 12. Bc3 {[%clk 0:02:45]}  Ne4 {[%clk 0:02:45]} 13. Be2 {[%clk 0:02:44]}  e5 {[%clk 0:02:44]} 14. dxe5 {[%clk 0:02:43]}  Nxc3 {[%clk 0:02:44]} 15. bxc3 {[%clk 0:02:44]}  Bxe5 {[%clk 0:02:30]} 16. c4 {[%clk 0:02:44]}  Qg5 {[%clk 0:02:03]} 17. Bf3 {[%clk 0:02:25]}  Qe7 {[%clk 0:01:30]} 18. cxd5 {[%clk 0:02:20]}  cxd5 {[%clk 0:01:30]} 19. O-O {[%clk 0:02:20]}  Bb5 {[%clk 0:01:27]} 20. Re1 {[%clk 0:02:18]}  Rad8 {[%clk 0:01:27]} 21. Bxd5 {[%clk 0:02:12]}  a6 {[%clk 0:01:19]} 22. Qf3 {[%clk 0:02:06]}  Rd6 {[%clk 0:01:15]} 23. g3 {[%clk 0:01:58]}  Qd7 {[%clk 0:01:07]} 24. Nc5 {[%clk 0:01:47]}  Qf5 {[%clk 0:00:50]} 25. Qxf5 {[%clk 0:01:38]}  gxf5 {[%clk 0:00:50]} 26. e4 {[%clk 0:01:07]}  f4 {[%clk 0:00:39]} 27. a4 {[%clk 0:01:02]}  Bc6 {[%clk 0:00:38]} 28. Bxc6 {[%clk 0:00:45]}  Rxc6 {[%clk 0:00:39]} 29. Nd3 {[%clk 0:00:41]}  Rxc1 {[%clk 0:00:38]} 30. Rxc1 {[%clk 0:00:42]}  fxg3 {[%clk 0:00:38]} 31. hxg3 {[%clk 0:00:36]}  Bg7 {[%clk 0:00:38]} 32. Rc4 {[%clk 0:00:34]}  a5 {[%clk 0:00:38]} 33. Kg2 {[%clk 0:00:30]}  Rd8 {[%clk 0:00:38]} 34. Nf4 {[%clk 0:00:28]}  Bf8 {[%clk 0:00:33]} 35. Nd5 {[%clk 0:00:26]}  Kg7 {[%clk 0:00:30]} 36. Rc6 {[%clk 0:00:22]}  Rb8 {[%clk 0:00:22]} 37. Ra6 {[%clk 0:00:20]}  Bb4 {[%clk 0:00:22]} 38. Kf3 {[%clk 0:00:20]}  Be1 {[%clk 0:00:22]} 39. Ke2 {[%clk 0:00:20]}  Bb4 {[%clk 0:00:22]} 40. f4 {[%clk 0:00:20]}  h5 {[%clk 0:00:22]} 41. f5 {[%clk 0:00:19]}  Rc8 {[%clk 0:00:19]} 42. Nf4 {[%clk 0:00:19]}  Rc2+ {[%clk 0:00:18]} 43. Kf3 {[%clk 0:00:18]}  Rc3+ {[%clk 0:00:19]} 44. Kg2 {[%clk 0:00:19]}  Re3 {[%clk 0:00:19]} 45. Nxh5+ {[%clk 0:00:18]}  Kf8 {[%clk 0:00:19]} 46. Nf6 {[%clk 0:00:17]}  Be1 {[%clk 0:00:14]} 47. g4 {[%clk 0:00:13]}  Kg7 {[%clk 0:00:14]} 48. Nh5+ {[%clk 0:00:12]}  Kf8 {[%clk 0:00:14]} 49. f6 {[%clk 0:00:11]}  Kg8 {[%clk 0:00:13]} 50. Ra7 {[%clk 0:00:09]}  Rxe4 {[%clk 0:00:12]} 51. Rxa5 {[%clk 0:00:08]}  Bxa5 {[%clk 0:00:09]} 52. Kf3 {[%clk 0:00:09]}  Rxa4 {[%clk 0:00:09]} 53. Nf4 {[%clk 0:00:09]}  Kh7 {[%clk 0:00:10]} 54. Nd5 {[%clk 0:00:08]}  Ra3+ {[%clk 0:00:09]} 55. Ke4 {[%clk 0:00:08]}  Kg6 {[%clk 0:00:08]} 56. Ne7+ {[%clk 0:00:04]}  Kxf6 {[%clk 0:00:08]} 57. Nc6 {[%clk 0:00:04]}  Ra4+ {[%clk 0:00:08]} 58. Kf3 {[%clk 0:00:05]}  Bd2 {[%clk 0:00:08]} 59. Nb8 {[%clk 0:00:02]}  Ke6 {[%clk 0:00:08]} 60. Nc6 {[%clk 0:00:02]}  Bg5 {[%clk 0:00:07]} 61. Ke2 {[%clk 0:00:01]}  Ra2+ {[%clk 0:00:06]} 62. Kd3 {[%clk 0:00:01]}  Rg2 {[%clk 0:00:07]} 63. Ke4 {[%clk 0:00:01]}  Rxg4+ {[%clk 0:00:07]} 64. Kf3 {[%clk 0:00:02]}  Ra4 {[%clk 0:00:07]} 65. Kg3 {[%clk 0:00:03]}  Kd5 {[%clk 0:00:07]} 66. Nb8 {[%clk 0:00:03]}  Bf4+ {[%clk 0:00:05]} 67. Kg4 {[%clk 0:00:03]}  Bxb8+ {[%clk 0:00:06]} 68. Kf5 {[%clk 0:00:03]}  Re4 {[%clk 0:00:05]} 69. Kf6 {[%clk 0:00:04]}  Rf4+ {[%clk 0:00:05]} 70. Kg7 {[%clk 0:00:05]}  Ke5 {[%clk 0:00:05]} 71. Kh8 {[%clk 0:00:06]}  f5 {[%clk 0:00:06]} 0-1


[Site "https://www.chess.com"]

[Event "Titled Tuesday Blitz February 21 Early 2023"]
[White "Fernandez Guillen, Ernesto J."]
[Black "Berezin, Viktor"]
[WhiteFideId "3512428"]
[BlackFideId "14107872"]
[WhiteElo "2477"]
[BlackElo "2307"]
[Result "1-0"]
[Round "02"]
[TimeControl "180+2"]
[Date "2023.02.21"]
[WhiteClock "0:00:17"]
[BlackClock "0:00:04"]

1. e4 {[%clk 0:03:00]}  g6 {[%clk 0:02:36]} 2. d4 {[%clk 0:03:00]}  Bg7 {[%clk 0:02:35]} 3. Nc3 {[%clk 0:03:01]}  d6 {[%clk 0:02:34]} 4. Be3 {[%clk 0:03:01]}  Nf6 {[%clk 0:02:35]} 5. f3 {[%clk 0:03:02]}  O-O {[%clk 0:02:35]} 6. Qd2 {[%clk 0:03:03]}  c6 {[%clk 0:02:35]} 7. O-O-O {[%clk 0:03:02]}  Qa5 {[%clk 0:02:34]} 8. Kb1 {[%clk 0:03:01]}  b5 {[%clk 0:02:34]} 9. h4 {[%clk 0:02:59]}  h5 {[%clk 0:02:33]} 10. Nh3 {[%clk 0:02:58]}  b4 {[%clk 0:02:33]} 11. Ne2 {[%clk 0:02:58]}  Nbd7 {[%clk 0:02:33]} 12. Nc1 {[%clk 0:02:59]}  Rb8 {[%clk 0:02:29]} 13. Bh6 {[%clk 0:02:57]}  e5 {[%clk 0:02:28]} 14. Bxg7 {[%clk 0:02:56]}  Kxg7 {[%clk 0:02:28]} 15. Ng5 {[%clk 0:02:53]}  Ba6 {[%clk 0:02:19]} 16. Bxa6 {[%clk 0:02:49]}  Qxa6 {[%clk 0:02:20]} 17. g4 {[%clk 0:02:42]}  Nb6 {[%clk 0:02:15]} 18. gxh5 {[%clk 0:02:27]}  Nxh5 {[%clk 0:02:14]} 19. dxe5 {[%clk 0:02:04]}  Nc4 {[%clk 0:02:08]} 20. Qg2 {[%clk 0:01:51]}  Ne3 {[%clk 0:01:30]} 21. Qh2 {[%clk 0:01:49]}  Nxd1 {[%clk 0:01:18]} 22. Rxd1 {[%clk 0:01:50]}  d5 {[%clk 0:01:01]} 23. e6 {[%clk 0:01:50]}  Qb7 {[%clk 0:00:55]} 24. exf7 {[%clk 0:01:47]}  Qe7 {[%clk 0:00:53]} 25. e5 {[%clk 0:01:25]}  a5 {[%clk 0:00:51]} 26. f4 {[%clk 0:01:22]}  Rxf7 {[%clk 0:00:46]} 27. Nxf7 {[%clk 0:01:18]}  Qxf7 {[%clk 0:00:47]} 28. Nd3 {[%clk 0:01:17]}  a4 {[%clk 0:00:46]} 29. e6 {[%clk 0:01:13]}  Qf5 {[%clk 0:00:45]} 30. e7 {[%clk 0:01:04]}  b3 {[%clk 0:00:44]} 31. Re1 {[%clk 0:01:00]}  Re8 {[%clk 0:00:33]} 32. Qd2 {[%clk 0:00:47]}  Nf6 {[%clk 0:00:29]} 33. Qc3 {[%clk 0:00:44]}  Kh7 {[%clk 0:00:28]} 34. Qxc6 {[%clk 0:00:43]}  bxc2+ {[%clk 0:00:28]} 35. Qxc2 {[%clk 0:00:41]}  Rc8 {[%clk 0:00:25]} 36. Qe2 {[%clk 0:00:21]}  Ne4 {[%clk 0:00:25]} 37. Ka1 {[%clk 0:00:21]}  a3 {[%clk 0:00:24]} 38. Ne5 {[%clk 0:00:20]}  axb2+ {[%clk 0:00:21]} 39. Qxb2 {[%clk 0:00:21]}  Re8 {[%clk 0:00:09]} 40. h5 {[%clk 0:00:21]}  Qxh5 {[%clk 0:00:08]} 41. Qg2 {[%clk 0:00:18]}  Rxe7 {[%clk 0:00:07]} 42. Rh1 {[%clk 0:00:18]}  Qxh1+ {[%clk 0:00:05]} 43. Qxh1+ {[%clk 0:00:19]}  Kg7 {[%clk 0:00:05]} 44. Qg2 {[%clk 0:00:19]}  Re6 {[%clk 0:00:05]} 45. Qb2 {[%clk 0:00:20]}  Nf6 {[%clk 0:00:05]} 46. Qd4 {[%clk 0:00:20]}  Ra6 {[%clk 0:00:04]} 47. a4 {[%clk 0:00:19]}  Kh6 {[%clk 0:00:03]} 48. Ka2 {[%clk 0:00:19]}  Kh5 {[%clk 0:00:03]} 49. Ka3 {[%clk 0:00:17]}  g5 {[%clk 0:00:03]} 50. fxg5 {[%clk 0:00:16]}  Kxg5 {[%clk 0:00:04]} 51. Nd3 {[%clk 0:00:16]}  Re6 {[%clk 0:00:04]} 52. a5 {[%clk 0:00:15]}  Re4 {[%clk 0:00:04]} 53. Qg1+ {[%clk 0:00:14]}  Kf5 {[%clk 0:00:05]} 54. a6 {[%clk 0:00:14]}  Nd7 {[%clk 0:00:05]} 55. a7 {[%clk 0:00:14]}  Re8 {[%clk 0:00:05]} 56. Nb4 {[%clk 0:00:13]}  Ke6 {[%clk 0:00:05]} 57. Nc6 {[%clk 0:00:13]}  Kd6 {[%clk 0:00:05]} 58. Nd4 {[%clk 0:00:13]}  Ra8 {[%clk 0:00:06]} 59. Nb5+ {[%clk 0:00:14]}  Kc6 {[%clk 0:00:06]} 60. Kb4 {[%clk 0:00:14]}  Nb6 {[%clk 0:00:04]} 61. Qc5+ {[%clk 0:00:14]}  Kb7 {[%clk 0:00:04]} 62. Qc7+ {[%clk 0:00:15]}  Ka6 {[%clk 0:00:04]} 63. Kc5 {[%clk 0:00:15]}  Rc8 {[%clk 0:00:04]} 64. Qxc8+ {[%clk 0:00:15]}  Nxc8 {[%clk 0:00:04]} 65. a8=Q+ {[%clk 0:00:16]}  Na7 {[%clk 0:00:04]} 66. Qxa7# {[%clk 0:00:17]} 1-0


[Site "https://www.chess.com"]